[Event "34th MPL National U12 Chess-ch 2022"]
[Site "Mysore"]
[Date "2022.04.12"]
[Round "7.3"]
[White "Aansh Nandan Nerurkar"]
[Black "Darshan, V P S"]
[Result "1-0"]
[ECO "C58"]
[WhiteElo "1564"]
[BlackElo "1670"]
[Annotator "NA RC"]
[PlyCount "109"]
[EventDate "2022.04.09"]
[EventCountry "IND"]
[SourceTitle "playchess.com"]
[Source "ChessBase"]
[SourceQuality "1"]
[TimeControl "5400+30"]

1. e4 e5 2. Nf3 Nc6 3. Bc4 Nf6 4. Ng5 d5 5. exd5 Na5 6. Bb5+ c6 7. dxc6 bxc6 8. Bd3 Bc5 9. O-O O-O 10. Nc3 h6 11. Nge4 Nxe4 12. Bxe4 f5 13. Bf3 Qf6 14. d3 Rd8 15. Qe1 Ba6 16. Na4 Bb6 17. Bd2 Nb7 18. Nxb6 axb6 19. Bc3 Re8 20. Qe3 Nc5 21. Rfe1 Nd7 22. g3 Qd6 23. Bg2 Rac8 24. Bh3 e4 25. dxe4 Rxe4 26. Qd2 Qxd2 27. Bxd2 Rxe1+ 28. Rxe1 Rf8 29. Bb4 c5 30. Bc3 g6 31. Re6 Kf7 32. Rd6 Bc8 33. Bg2 Rd8 34. Bd5+ Kf8 35. Rxg6 Ke8 36. Rxh6 Ke7 37. Rh8 Rxh8 38. Bxh8 Nf6 39. Bxf6+ Kxf6 40. f4 b5 41. Kf2 Ba6 42. h3 Bc8 43. Kf3 Bd7 44. g4 fxg4+ 45. hxg4 Bc8 46. g5+ Kg6 47. Be4+ Kg7 48. f5 Bd7 49. Kf4 Bc8 50. Ke5 Ba6 51. f6+ Kf8 52. g6 Bc8 53. Bd5 Bd7 54. g7+ Ke8 55. g8=Q# 1-0

[Event "34th MPL National U12 Chess-ch 2022"]
[Site "Mysore"]
[Date "2022.04.12"]
[Round "7.4"]
[White "Reyan"]
[Black "Haridev S"]
[Result "1/2-1/2"]
[ECO "B23"]
[WhiteElo "1543"]
[BlackElo "1458"]
[Annotator "NA RC"]
[PlyCount "58"]
[EventDate "2022.04.09"]
[EventCountry "IND"]
[SourceTitle "playchess.com"]
[Source "ChessBase"]
[SourceQuality "1"]
[TimeControl "5400+30"]

1. e4 {[%emt 0:00:02]} c5 {[%emt 0:00:13]} 2. Nc3 {[%emt 0:00:05]} d6 {[%emt 0:00:08]} 3. d4 {[%emt 0:00:05]} cxd4 {[%emt 0:00:08]} 4. Qxd4 {[%emt 0:00:08]} Nc6 {[%emt 0:00:05]} 5. Qd2 {[%emt 0:00:08]} Nf6 {[%emt 0:00:17]} 6. b3 {[%emt 0:00:10]} e6 {[%emt 0:00:48]} 7. Bb2 {[%emt 0:00:13]} Be7 {[%emt 0:12:43]} 8. O-O-O {[%emt 0:00:27]} O-O {[%emt 0:01:33]} 9. Kb1 {[%emt 0:00:34]} a6 {[%emt 1:19:05]} 10. f4 {[%emt 0:01:33]} b5 {[%emt 0:00:00]} 11. Bd3 {[%emt 0:02:27]} Bb7 {[%emt 0:00:00]} 12. Nf3 {[%emt 0:00:51]} Qb6 {[%emt 0:00:00]} 13. g4 {[%emt 0:00:39]} d5 {[%emt 0:00:00]} 14. exd5 {[%emt 0:06:13]} Nxd5 {[%emt 0:02:30]} 15. Nxd5 {[%emt 0:00:36]} exd5 {[%emt 0:00:00]} 16. Rhe1 {[%emt 0:06:02]} Qc7 {[%emt 0:00:00]} 17. Nd4 {[%emt 0:14:11]} Bf6 {[%emt 0:00:00]} 18. Nf5 {[%emt 0:13:45]} Bxb2 {[%emt 0:00:00]} 19. Kxb2 {[%emt 0:00:12]} Bc8 {[%emt 0:00:00]} 20. Nh4 {[%emt 0:08:53]} Bxg4 {[%emt 0:00:00]} 21. Rc1 {[%emt 0:17:19]} Qd6 {[%emt 0:00:00]} 22. Qf2 {[%emt 0:02:52]} f5 {[%emt 0:00:00]} 23. Qg3 {[%emt 0:01:44]} Nb4 {[%emt 0:00:00]} 24. Re5 {[%emt 0:00:36]} Nc6 {[%emt 0:00:00]} 25. Ree1 {[%emt 0:23:15]} Qf6+ 26. Kb1 {[%emt 0:00:30]} Qd6 {[%emt 0:06:00]} 27. Kb2 {[%emt 0:00:30]} Rac8 {[%emt 0:00:30]} 28. h3 {[%emt 0:00:30]} Bh5 {[%emt 0:00:30]} 29. Qg5 {[%emt 0:00:30]} Qf6+ {[%emt 0:00:30]} 1/2-1/2

[Event "34th MPL National U12 Chess-ch 2022"]
[Site "Mysore"]
[Date "2022.04.12"]
[Round "7.5"]
[White "Adharsh K"]
[Black "Raihaan Zahid"]
[Result "0-1"]
[ECO "B43"]
[WhiteElo "1444"]
[BlackElo "1491"]
[Annotator "NA RC"]
[PlyCount "66"]
[EventDate "2022.04.09"]
[EventCountry "IND"]
[SourceTitle "playchess.com"]
[Source "ChessBase"]
[SourceQuality "1"]
[TimeControl "5400+30"]

1. e4 {[%emt 0:00:01]} c5 {[%emt 0:00:01]} 2. Nc3 {[%emt 0:00:08]} e6 {[%emt 0:00:06]} 3. Nf3 {[%emt 0:00:09]} a6 {[%emt 0:00:10]} 4. d4 {[%emt 0:00:21]} cxd4 {[%emt 0:00:07]} 5. Nxd4 {[%emt 0:00:08]} Qc7 {[%emt 0:00:16]} 6. Nb3 {[%emt 0:00:21]} b5 {[%emt 0:01:58]} 7. Qf3 {[%emt 0:03:02]} Bb7 {[%emt 0:00:12]} 8. Bf4 {[%emt 0:00:19]} d6 {[%emt 0:01:06]} 9. O-O-O {[%emt 0:00:18]} b4 {[%emt 0:01:31]} 10. Ne2 {[%emt 0:05:09]} Nf6 {[%emt 0:01:02]} 11. Ng3 {[%emt 0:00:23]} Nbd7 {[%emt 0:02:02]} 12. Qd3 {[%emt 0:06:34]} Rc8 {[%emt 0:05:19]} 13. f3 {[%emt 0:10:06]} Ne5 {[%emt 0:14:30]} 14. Bxe5 {[%emt 0:00:24]} dxe5 {[%emt 0:00:13]} 15. Nd2 {[%emt 0:05:57]} Be7 {[%emt 0:01:34]} 16. Nc4 {[%emt 0:04:05]} O-O {[%emt 0:02:22]} 17. Qe3 {[%emt 0:05:55]} h6 {[%emt 0:14:02]} 18. Qb3 {[%emt 0:12:25]} Bc6 {[%emt 0:05:42]} 19. Qe3 {[%emt 0:14:56]} Bb5 {[%emt 0:01:24]} 20. b3 {[%emt 0:00:25]} Nd5 {[%emt 0:01:15]} 21. Qe1 {[%emt 0:08:23]} Nc3 {[%emt 0:00:55]} 22. Rd2 {[%emt 0:01:48]} Bxc4 {[%emt 0:00:55]} 23. Bxc4 {[%emt 0:00:54]} Nxa2+ {[%emt 0:00:50]} 24. Kb1 {[%emt 0:01:26]} Qa5 {[%emt 0:00:13]} 25. Ne2 {[%emt 0:00:33]} Nc3+ {[%emt 0:00:27]} 26. Nxc3 {[%emt 0:00:35]} bxc3 {[%emt 0:00:10]} 27. Rd7 {[%emt 0:01:29]} Rxc4 {[%emt 0:00:09]} 28. Rxe7 {[%emt 0:00:43]} Qa3 {[%emt 0:00:06]} 29. Qc1 {[%emt 0:00:26]} Qxe7 {[%emt 0:00:07]} 30. bxc4 {[%emt 0:00:17]} Rb8+ {[%emt 0:00:07]} 31. Ka1 {[%emt 0:00:44]} Rb2 {[%emt 0:00:07]} 32. c5 {[%emt 0:00:24]} Qxc5 {[%emt 0:00:06]} 33. Qd1 {[%emt 0:00:25]} Qa3# {[%emt 0:00:38]} 0-1

[Event "34th MPL National U12 Chess-ch 2022"]
[Site "Mysore"]
[Date "2022.04.12"]
[Round "7.6"]
[White "Sherla Prathamesh"]
[Black "Vignesh Kannan P"]
[Result "1-0"]
[ECO "A23"]
[WhiteElo "1484"]
[BlackElo "1308"]
[Annotator "NA RC"]
[PlyCount "61"]
[EventDate "2022.04.09"]
[EventCountry "IND"]
[SourceTitle "playchess.com"]
[Source "ChessBase"]
[SourceQuality "1"]
[TimeControl "5400+30"]

1. c4 {[%emt 0:00:01]} Nf6 {[%emt 0:00:09]} 2. Nc3 {[%emt 0:00:06]} e5 {[%emt 0:00:23]} 3. g3 {[%emt 0:00:04]} Bc5 {[%emt 0:00:13]} 4. Bg2 {[%emt 0:00:09]} O-O {[%emt 0:00:17]} 5. e3 {[%emt 0:00:04]} c6 {[%emt 0:00:23]} 6. Nge2 {[%emt 0:00:14]} d5 {[%emt 0:00:19]} 7. cxd5 {[%emt 0:03:31]} cxd5 {[%emt 0:00:09]} 8. d4 {[%emt 0:00:44]} exd4 {[%emt 0:00:08]} 9. exd4 {[%emt 0:00:03]} Bb4 {[%emt 0:00:13]} 10. O-O {[%emt 0:01:08]} Bg4 {[%emt 0:01:23]} 11. h3 {[%emt 0:02:13]} Bf5 {[%emt 0:01:49]} 12. Bg5 {[%emt 0:01:43]} Bxc3 {[%emt 0:03:13]} 13. Nxc3 {[%emt 0:01:06]} Be6 {[%emt 0:00:45]} 14. f4 {[%emt 0:05:06]} Qb6 {[%emt 0:03:58]} 15. f5 {[%emt 0:06:23]} Bd7 {[%emt 0:02:52]} 16. Bxf6 {[%emt 0:01:39]} Qxf6 {[%emt 0:03:05]} 17. Nxd5 {[%emt 0:01:17]} Qd6 {[%emt 0:02:22]} 18. f6 {[%emt 0:08:34]} Qxg3 {[%emt 0:01:43]} 19. Qh5 {[%emt 0:03:36]} Nc6 {[%emt 0:02:57]} 20. fxg7 {[%emt 0:02:26]} Qxg7 {[%emt 0:00:36]} 21. Nf6+ {[%emt 0:00:53]} Kh8 {[%emt 0:00:10]} 22. d5 {[%emt 0:08:47]} Nb8 {[%emt 0:15:49]} 23. Kh1 {[%emt 0:07:28]} Bb5 {[%emt 0:02:25]} 24. Be4 {[%emt 0:19:51]} h6 {[%emt 0:05:20]} 25. Rf2 {[%emt 0:01:42]} Be2 {[%emt 0:05:14]} 26. Qxe2 {[%emt 0:01:49]} Rd8 {[%emt 0:00:22]} 27. Rg1 {[%emt 0:00:44]} Qf8 {[%emt 0:00:08]} 28. Qh5 {[%emt 0:00:27]} Na6 {[%emt 0:01:34]} 29. Rg8+ {[%emt 0:00:26]} Qxg8 {[%emt 0:00:26]} 30. Qxh6+ {[%emt 0:00:06]} Qh7 {[%emt 0:00:11]} 31. Qxh7# {[%emt 0:00:03]} 1-0

[Event "34th MPL National U12 Chess-ch 2022"]
[Site "Mysore"]
[Date "2022.04.12"]
[Round "8.1"]
[White "Vaz, Ethan"]
[Black "Aansh Nandan Nerurkar"]
[Result "1-0"]
[ECO "B06"]
[WhiteElo "1384"]
[BlackElo "1564"]
[Annotator "NA RC"]
[PlyCount "111"]
[EventDate "2022.04.09"]
[EventCountry "IND"]
[SourceTitle "playchess.com"]
[Source "ChessBase"]
[SourceQuality "1"]
[TimeControl "5400+30"]

1. e4 {[%emt 0:00:03]} c5 {[%emt 0:00:10]} 2. c3 {[%emt 0:00:08]} d5 {[%emt 0:00:06]} 3. exd5 {[%emt 0:00:04]} Qxd5 {[%emt 0:00:07]} 4. d4 {[%emt 0:00:04]} g6 {[%emt 0:00:17]} 5. Nf3 {[%emt 0:01:18]} Bg7 {[%emt 0:00:24]} 6. Na3 {[%emt 0:01:31]} cxd4 {[%emt 0:01:11]} 7. Bc4 {[%emt 0:04:58]} Qe4+ {[%emt 0:04:44]} 8. Be3 {[%emt 0:03:33]} Nh6 {[%emt 0:02:12]} 9. Nb5 {[%emt 0:18:21]} O-O {[%emt 0:06:58]} 10. cxd4 {[%emt 0:03:39]} Nf5 {[%emt 0:04:01]} 11. Nc7 {[%emt 0:23:38]} Nc6 {[%emt 0:05:20]} 12. Nxa8 {[%emt 0:12:48]} Ncxd4 {[%emt 0:03:44]} 13. Nxd4 {[%emt 0:06:47]} Nxd4 {[%emt 0:01:19]} 14. O-O {[%emt 0:03:31]} Bh3 {[%emt 0:00:33]} 15. gxh3 {[%emt 0:00:59]} Nf3+ {[%emt 0:00:08]} 16. Kh1 {[%emt 0:00:03]} Nd2+ {[%emt 0:00:12]} 17. f3 {[%emt 0:00:39]} Qxe3 {[%emt 0:00:46]} 18. Re1 {[%emt 0:02:12]} Qg5 {[%emt 0:07:14]} 19. h4 {[%emt 0:03:27]} Qa5 {[%emt 0:07:09]} 20. Qc2 {[%emt 0:03:27]} e6 {[%emt 0:03:57]} 21. Rad1 {[%emt 0:09:50]} Nxf3 {[%emt 0:50:28]} 22. Rf1 {[%emt 0:06:45]} Nd4 {[%emt 0:06:48]} 23. Qe4 {[%emt 0:02:43]} Rxa8 {[%emt 0:05:27]} 24. Rxf7 {[%emt 0:01:16]} Kxf7 {[%emt 0:04:06]} 25. Qxb7+ {[%emt 0:00:05]} Kf6 {[%emt 0:00:44]} 26. Qxa8 {[%emt 0:00:26]} Nf5 {[%emt 0:02:07]} 27. Qd8+ {[%emt 0:01:01]} Qxd8 {[%emt 0:29:06]} 28. Rxd8 {[%emt 0:00:01]} Ke7 {[%emt 0:00:22]} 29. Ra8 {[%emt 0:00:52]} Bd4 {[%emt 0:00:20]} 30. b4 {[%emt 0:00:35]} e5 {[%emt 0:00:16]} 31. Bd5 {[%emt 0:00:20]} Nd6 {[%emt 0:00:34]} 32. Rh8 {[%emt 0:00:43]} h5 {[%emt 0:00:11]} 33. Rh7+ {[%emt 0:00:03]} Kf8 {[%emt 0:00:43]} 34. Rd7 {[%emt 0:00:39]} Nf5 {[%emt 0:00:16]} 35. a4 {[%emt 0:00:48]} Ke8 {[%emt 0:00:12]} 36. Bc6 {[%emt 0:00:27]} Kf8 {[%emt 0:00:08]} 37. a5 {[%emt 0:00:20]} Ne7 {[%emt 0:00:06]} 38. b5 {[%emt 0:00:33]} Kf7 {[%emt 0:00:35]} 39. Be4 {[%emt 0:00:18]} Ke6 {[%emt 0:00:17]} 40. Rb7 {[%emt 0:00:05]} Kd6 {[%emt 0:00:43]} 41. a6 {[%emt 0:00:19]} Bf2 {[%emt 0:00:51]} 42. Kg2 {[%emt 0:00:18]} Bd4 {[%emt 0:00:08]} 43. b6 {[%emt 0:00:47]} Nc8 {[%emt 0:00:07]} 44. bxa7 {[%emt 0:00:41]} Nxa7 {[%emt 0:00:06]} 45. Bxg6 {[%emt 0:00:04]} Nc6 {[%emt 0:00:04]} 46. Kf3 {[%emt 0:00:47]} Na7 {[%emt 0:00:10]} 47. Ke4 {[%emt 0:00:21]} Nc6 {[%emt 0:00:15]} 48. Bxh5 {[%emt 0:00:08]} Na7 {[%emt 0:00:10]} 49. Be8 {[%emt 0:00:06]} Nc8 {[%emt 0:00:07]} 50. h5 {[%emt 0:00:12]} Na7 {[%emt 0:00:08]} 51. h6 {[%emt 0:00:04]} Nc6 {[%emt 0:00:04]} 52. Bxc6 {[%emt 0:00:07]} Kxc6 {[%emt 0:00:04]} 53. h7 {[%emt 0:00:05]} Bb6 {[%emt 0:00:09]} 54. h8=Q {[%emt 0:00:06]} Bc5 {[%emt 0:00:06]} 55. Qc8+ {[%emt 0:00:05]} Kd6 {[%emt 0:00:03]} 56. Qd7# {[%emt 0:00:01]} 1-0

[Event "34th MPL National U12 Chess-ch 2022"]
[Site "Mysore"]
[Date "2022.04.12"]
[Round "8.2"]
[White "Goutham Krishna H"]
[Black "Sherla Prathamesh"]
[Result "1-0"]
[ECO "E16"]
[WhiteElo "1541"]
[BlackElo "1484"]
[Annotator "NA RC"]
[PlyCount "153"]
[EventDate "2022.04.09"]
[EventCountry "IND"]
[SourceTitle "playchess.com"]
[Source "ChessBase"]
[SourceQuality "1"]
[TimeControl "5400+30"]

1. Nf3 {[%emt 0:00:04]} Nf6 {[%emt 0:01:04]} 2. d4 {[%emt 0:00:07]} e6 {[%emt 0:00:04]} 3. c4 {[%emt 0:00:07]} Bb4+ {[%emt 0:00:32]} 4. Bd2 {[%emt 0:00:02]} Qe7 {[%emt 0:00:08]} 5. g3 {[%emt 0:00:18]} b6 {[%emt 0:07:18]} 6. Bg2 {[%emt 0:00:16]} Bb7 {[%emt 0:00:12]} 7. O-O {[%emt 0:00:13]} O-O {[%emt 0:01:14]} 8. Bf4 {[%emt 0:00:38]} Bd6 {[%emt 0:03:10]} 9. Bc1 {[%emt 0:01:15]} c5 {[%emt 0:06:45]} 10. d5 {[%emt 0:01:18]} Na6 {[%emt 0:07:11]} 11. Nc3 {[%emt 0:01:59]} exd5 {[%emt 0:06:25]} 12. Nh4 {[%emt 0:01:20]} Be5 {[%emt 0:03:30]} 13. Nxd5 {[%emt 0:11:29]} Nxd5 {[%emt 0:01:48]} 14. cxd5 {[%emt 0:00:39]} d6 {[%emt 0:03:07]} 15. Kh1 {[%emt 0:00:59]} g6 {[%emt 0:03:45]} 16. f4 {[%emt 0:08:47]} Bh8 {[%emt 0:05:00]} 17. e4 {[%emt 0:02:23]} f6 {[%emt 0:03:59]} 18. Bd2 {[%emt 0:02:26]} b5 {[%emt 0:03:40]} 19. Qg4 {[%emt 0:05:06]} Bc8 {[%emt 0:05:04]} 20. Qe2 {[%emt 0:01:12]} Bd7 {[%emt 0:01:26]} 21. a4 {[%emt 0:00:17]} Nc7 {[%emt 0:00:47]} 22. Ba5 {[%emt 0:04:11]} Nxd5 {[%emt 0:10:40]} 23. e5 {[%emt 0:00:29]} Qf7 {[%emt 0:02:41]} 24. Qd2 {[%emt 0:01:17]} Bc6 {[%emt 0:01:06]} 25. Rfd1 {[%emt 0:01:00]} Nb4 {[%emt 0:00:53]} 26. Bxb4 {[%emt 0:00:41]} Bxg2+ {[%emt 0:00:13]} 27. Nxg2 {[%emt 0:00:02]} cxb4 {[%emt 0:02:03]} 28. exd6 {[%emt 0:00:10]} bxa4 {[%emt 0:02:48]} 29. Rxa4 {[%emt 0:00:08]} a5 {[%emt 0:00:19]} 30. f5 {[%emt 0:00:04]} Bg7 {[%emt 0:05:35]} 31. Qd5 {[%emt 0:01:12]} Qxd5 {[%emt 0:03:42]} 32. Rxd5 {[%emt 0:00:02]} Rfd8 {[%emt 0:03:01]} 33. Ne3 {[%emt 0:02:06]} Bf8 {[%emt 0:00:40]} 34. Nc4 {[%emt 0:00:24]} Ra6 {[%emt 0:01:04]} 35. Raxa5 {[%emt 0:03:04]} Rxa5 {[%emt 0:00:17]} 36. Rxa5 {[%emt 0:00:06]} Bxd6 {[%emt 0:01:13]} 37. Ra6 {[%emt 0:01:21]} Be7 {[%emt 0:00:51]} 38. fxg6 {[%emt 0:00:16]} hxg6 {[%emt 0:00:04]} 39. Rc6 {[%emt 0:00:14]} Rd5 {[%emt 0:01:18]} 40. Re6 {[%emt 0:00:57]} Kf7 {[%emt 0:05:53]} 41. Re3 {[%emt 0:00:03]} Bc5 {[%emt 0:00:00]} 42. Re1 {[%emt 0:00:23]} Bd4 {[%emt 0:00:00]} 43. Rd1 {[%emt 0:01:14]} Ke6 {[%emt 0:00:00]} 44. Kg2 {[%emt 0:00:14]} Be5 {[%emt 0:00:00]} 45. Rxd5 {[%emt 0:08:20]} Kxd5 {[%emt 0:00:00]} 46. Nxe5 {[%emt 0:00:01]} fxe5 {[%emt 0:01:56]} 47. Kf2 {[%emt 0:00:17]} Ke4 {[%emt 0:00:38]} 48. Ke2 {[%emt 0:00:52]} b3 {[%emt 0:00:44]} 49. h3 {[%emt 0:00:16]} Kf5 {[%emt 0:00:34]} 50. Ke3 {[%emt 0:01:33]} Kf6 {[%emt 0:00:35]} 51. Ke4 {[%emt 0:00:16]} Ke6 {[%emt 0:00:30]} 52. h4 {[%emt 0:00:19]} Kd6 {[%emt 0:00:31]} 53. g4 {[%emt 0:00:23]} Ke6 {[%emt 0:01:02]} 54. h5 {[%emt 0:00:28]} g5 {[%emt 0:00:00]} 55. h6 {[%emt 0:00:28]} Kf6 {[%emt 0:01:00]} 56. h7 {[%emt 0:00:01]} Kg7 {[%emt 0:00:00]} 57. Kxe5 {[%emt 0:00:10]} Kxh7 {[%emt 0:00:00]} 58. Kf5 {[%emt 0:00:13]} Kh6 {[%emt 0:00:00]} 59. Kf6 {[%emt 0:00:04]} Kh7 {[%emt 0:00:00]} 60. Kxg5 {[%emt 0:00:05]} Kg7 {[%emt 0:00:00]} 61. Kf5 {[%emt 0:01:37]} Kf7 {[%emt 0:00:00]} 62. Ke5 {[%emt 0:00:44]} Kg6 {[%emt 0:00:00]} 63. Kd4 {[%emt 0:00:25]} Kg5 {[%emt 0:00:00]} 64. Kc3 {[%emt 0:00:01]} Kxg4 {[%emt 0:00:04]} 65. Kxb3 {[%emt 0:00:03]} Kf5 {[%emt 0:00:05]} 66. Kc4 {[%emt 0:00:15]} Ke6 {[%emt 0:00:04]} 67. Kc5 {[%emt 0:00:14]} Kd7 {[%emt 0:00:06]} 68. Kb6 {[%emt 0:00:07]} Kc8 {[%emt 0:00:05]} 69. b4 {[%emt 0:00:18]} Kb8 {[%emt 0:00:18]} 70. b5 {[%emt 0:00:03]} Ka8 {[%emt 0:00:08]} 71. Kc7 {[%emt 0:00:04]} Ka7 {[%emt 0:00:03]} 72. b6+ {[%emt 0:00:03]} Ka6 {[%emt 0:00:05]} 73. b7 {[%emt 0:00:02]} Ka5 {[%emt 0:00:04]} 74. b8=Q {[%emt 0:49:15]} Ka4 {[%emt 0:00:04]} 75. Qb2 {[%emt 0:00:00]} Ka5 {[%emt 0:00:03]} 76. Qb3 {[%emt 0:00:00]} Ka6 {[%emt 0:00:04]} 77. Qa4# {[%emt 0:00:00]} 1-0

[Event "34th MPL National U12 Chess-ch 2022"]
[Site "Mysore"]
[Date "2022.04.12"]
[Round "8.3"]
[White "Raihaan Zahid"]
[Black "Sathvik Adiga"]
[Result "0-1"]
[ECO "C92"]
[WhiteElo "1491"]
[BlackElo "1562"]
[Annotator "NA RC"]
[PlyCount "120"]
[EventDate "2022.04.09"]
[EventCountry "IND"]
[SourceTitle "playchess.com"]
[Source "ChessBase"]
[SourceQuality "1"]
[TimeControl "5400+30"]

1. e4 {[%emt 0:00:02]} e5 {[%emt 0:00:04]} 2. Nf3 {[%emt 0:00:07]} Nc6 {[%emt 0:00:03]} 3. Bb5 {[%emt 0:00:10]} a6 {[%emt 0:00:05]} 4. Ba4 {[%emt 0:00:06]} Nf6 {[%emt 0:00:05]} 5. O-O {[%emt 0:00:22]} Be7 {[%emt 0:00:04]} 6. Re1 {[%emt 0:00:10]} b5 {[%emt 0:00:03]} 7. Bb3 {[%emt 0:00:08]} d6 {[%emt 0:00:04]} 8. c3 {[%emt 0:00:13]} O-O {[%emt 0:00:03]} 9. h3 {[%emt 0:00:08]} Nb8 {[%emt 0:00:05]} 10. d4 {[%emt 0:00:11]} Nbd7 {[%emt 0:00:04]} 11. Nbd2 {[%emt 0:00:11]} Bb7 {[%emt 0:00:04]} 12. Bc2 {[%emt 0:00:14]} Re8 {[%emt 0:00:04]} 13. Nf1 {[%emt 0:00:45]} Bf8 {[%emt 0:00:05]} 14. Ng3 {[%emt 0:00:31]} g6 {[%emt 0:00:04]} 15. d5 {[%emt 0:06:05]} c6 {[%emt 0:01:29]} 16. dxc6 {[%emt 0:00:14]} Bxc6 {[%emt 0:00:03]} 17. Nh2 {[%emt 0:12:58]} d5 {[%emt 0:17:22]} 18. exd5 {[%emt 0:03:08]} Nxd5 {[%emt 0:00:23]} 19. Nf3 {[%emt 0:07:00]} Bg7 {[%emt 0:09:35]} 20. Bg5 {[%emt 0:06:36]} f6 {[%emt 0:14:35]} 21. Be3 {[%emt 0:04:09]} Nxe3 {[%emt 0:02:47]} 22. fxe3 {[%emt 0:00:17]} Nc5 {[%emt 0:12:32]} 23. Qe2 {[%emt 0:04:11]} Qc7 {[%emt 0:00:42]} 24. e4 {[%emt 0:02:31]} Rad8 {[%emt 0:01:46]} 25. Nh2 {[%emt 0:06:15]} Qb7 {[%emt 0:07:28]} 26. Rf1 {[%emt 0:07:30]} Kh8 {[%emt 0:03:56]} 27. Ng4 {[%emt 0:11:46]} Rd6 {[%emt 0:00:55]} 28. Rad1 {[%emt 0:02:49]} Rd5 {[%emt 0:30:00]} 29. Rd3 Rxd3 {[%emt 0:00:00]} 30. Re1 {[%emt 0:26:43]} Rd1 31. Rxd1 {[%emt 0:00:00]} Ne6 {[%emt 0:00:00]} 32. Bb3 {[%emt 0:00:00]} Nf4 {[%emt 0:00:00]} 33. Qe3 {[%emt 0:00:00]} Qc7 {[%emt 0:00:00]} 34. Qc5 {[%emt 0:00:00]} Bf8 {[%emt 0:00:00]} 35. Qe3 {[%emt 0:00:00]} Rd8 {[%emt 0:00:00]} 36. Rxd8 {[%emt 0:00:00]} Qxd8 {[%emt 0:00:00]} 37. Qa7 {[%emt 0:00:00]} Qd2 {[%emt 0:00:00]} 38. Ne3 {[%emt 0:00:00]} Qd7 {[%emt 0:00:00]} 39. Qxa6 {[%emt 0:00:00]} Bc5 {[%emt 0:00:00]} 40. Ngf1 {[%emt 0:00:00]} Kg7 {[%emt 0:00:00]} 41. Kh2 {[%emt 0:00:00]} Bxe4 {[%emt 0:00:00]} 42. Ng4 {[%emt 0:00:00]} Bc6 {[%emt 0:00:00]} 43. c4 {[%emt 0:00:00]} Qb7 {[%emt 0:02:54]} 44. Qxb7+ {[%emt 0:00:00]} Bxb7 {[%emt 0:00:01]} 45. cxb5 {[%emt 0:00:00]} Bxg2 {[%emt 0:00:29]} 46. Nge3 {[%emt 0:00:04]} Bb7 {[%emt 0:01:11]} 47. a4 {[%emt 0:00:43]} f5 {[%emt 0:00:22]} 48. a5 {[%emt 0:00:09]} Kf6 {[%emt 0:00:38]} 49. Bc4 {[%emt 0:04:02]} e4 {[%emt 0:01:34]} 50. b6 {[%emt 0:00:40]} Bc6 {[%emt 0:01:03]} 51. Nc2 {[%emt 0:01:09]} Nd3 {[%emt 0:00:46]} 52. Nfe3 {[%emt 0:00:36]} Nxb2 {[%emt 0:01:09]} 53. Bd5 {[%emt 0:00:36]} Bb5 {[%emt 0:00:17]} 54. Bb7 {[%emt 0:01:14]} Ke5 {[%emt 0:00:36]} 55. Nd5 {[%emt 0:00:22]} Nc4 {[%emt 0:00:04]} 56. Nc7 {[%emt 0:01:56]} Nxa5 {[%emt 0:00:08]} 57. Bc8 {[%emt 0:00:53]} Bc6 {[%emt 0:00:07]} 58. b7 {[%emt 0:01:03]} Bxb7 {[%emt 0:00:10]} 59. Ne6 {[%emt 0:00:13]} Bxc8 {[%emt 0:00:23]} 60. Nxc5 {[%emt 0:00:05]} Nc4 {[%emt 0:00:08]} 0-1

[Event "34th MPL National U12 Chess-ch 2022"]
[Site "Mysore"]
[Date "2022.04.12"]
[Round "8.4"]
[White "Adireddy Arjun"]
[Black "Nimay Agrawal"]
[Result "1/2-1/2"]
[ECO "B01"]
[WhiteElo "1796"]
[BlackElo "1366"]
[Annotator "NA RC"]
[PlyCount "104"]
[EventDate "2022.04.09"]
[EventCountry "IND"]
[SourceTitle "playchess.com"]
[Source "ChessBase"]
[SourceQuality "1"]
[TimeControl "5400+30"]

1. e4 {[%emt 0:00:02]} d5 {[%emt 0:00:15]} 2. exd5 {[%emt 0:00:06]} Qxd5 {[%emt 0:00:06]} 3. Nc3 {[%emt 0:00:06]} Qa5 {[%emt 0:00:15]} 4. d4 {[%emt 0:00:06]} c6 {[%emt 0:00:14]} 5. Nf3 {[%emt 0:02:18]} Nf6 {[%emt 0:00:30]} 6. Bc4 {[%emt 0:01:30]} Bf5 {[%emt 0:00:59]} 7. Bd2 {[%emt 0:01:00]} Qc7 {[%emt 0:00:38]} 8. Ne5 {[%emt 0:01:53]} e6 {[%emt 0:00:28]} 9. g4 {[%emt 0:01:59]} Bg6 {[%emt 0:00:26]} 10. h4 {[%emt 0:04:58]} Nbd7 {[%emt 0:01:20]} 11. Nxg6 {[%emt 0:01:13]} hxg6 {[%emt 0:00:22]} 12. g5 {[%emt 0:06:46]} Nd5 {[%emt 0:06:51]} 13. Nxd5 {[%emt 0:02:14]} cxd5 {[%emt 0:00:37]} 14. Bd3 {[%emt 0:02:01]} Bd6 {[%emt 0:06:08]} 15. Qf3 {[%emt 0:05:06]} a6 {[%emt 0:04:07]} 16. h5 {[%emt 0:02:47]} gxh5 {[%emt 0:09:44]} 17. Rxh5 {[%emt 0:00:09]} Rxh5 {[%emt 0:02:01]} 18. Qxh5 {[%emt 0:00:02]} Nf8 {[%emt 0:05:42]} 19. Qh4 {[%emt 0:07:07]} g6 {[%emt 0:03:19]} 20. O-O-O {[%emt 0:03:28]} O-O-O {[%emt 0:02:10]} 21. f4 {[%emt 0:02:16]} Nd7 {[%emt 0:03:37]} 22. Rf1 {[%emt 0:03:43]} Nb8 {[%emt 0:05:18]} 23. Rh1 {[%emt 0:02:50]} Nc6 {[%emt 0:03:25]} 24. Qf2 {[%emt 0:00:14]} Qb6 {[%emt 0:01:03]} 25. c3 {[%emt 0:01:19]} Rf8 {[%emt 0:08:17]} 26. Rh7 {[%emt 0:00:56]} Kb8 {[%emt 0:01:21]} 27. Be3 {[%emt 0:01:10]} Qd8 {[%emt 0:02:46]} 28. Qg2 {[%emt 0:03:24]} Ne7 {[%emt 0:02:04]} 29. Bd2 {[%emt 0:02:05]} Nf5 {[%emt 0:02:00]} 30. Bxf5 {[%emt 0:01:04]} gxf5 {[%emt 0:00:04]} 31. Qe2 {[%emt 0:04:52]} Qe8 {[%emt 0:03:08]} 32. Qh5 {[%emt 0:02:21]} Ka7 {[%emt 0:01:08]} 33. Rg7 {[%emt 0:02:54]} Ka8 {[%emt 0:02:13]} 34. g6 {[%emt 0:04:36]} fxg6 {[%emt 0:00:45]} 35. Qxg6 {[%emt 0:00:03]} Qxg6 {[%emt 0:01:05]} 36. Rxg6 {[%emt 0:00:02]} Re8 {[%emt 0:00:06]} 37. Kd1 {[%emt 0:03:17]} Kb8 {[%emt 0:00:45]} 38. Ke2 {[%emt 0:00:06]} Kc7 {[%emt 0:00:19]} 39. Kf3 {[%emt 0:00:21]} Kd7 {[%emt 0:00:36]} 40. Rh6 {[%emt 0:00:06]} Rg8 {[%emt 0:00:35]} 41. Be3 {[%emt 0:00:06]} Rg4 {[%emt 0:00:34]} 42. Rh1 {[%emt 0:01:41]} b5 {[%emt 0:00:47]} 43. Rh8 {[%emt 0:02:53]} Bc7 {[%emt 0:02:17]} 44. Rh7+ {[%emt 0:01:16]} Kc6 {[%emt 0:00:17]} 45. Re7 {[%emt 0:01:24]} Kd6 {[%emt 0:00:09]} 46. Rh7 {[%emt 0:00:13]} Kc6 {[%emt 0:00:04]} 47. Rh2 {[%emt 0:02:55]} a5 {[%emt 0:00:19]} 48. Rh6 {[%emt 0:01:52]} Kd7 {[%emt 0:00:06]} 49. Rh7+ {[%emt 0:00:03]} Kc6 {[%emt 0:00:19]} 50. Rh6 {[%emt 0:00:49]} Kd7 {[%emt 0:00:04]} 51. Rh7+ {[%emt 0:00:03]} Kc6 {[%emt 0:00:07]} 52. Rh6 {[%emt 0:00:03]} Kd7 {[%emt 0:24:40]} 1/2-1/2